Cogmind - Beta 17 @@@ ROGUE MODE // 2026.07.05 @ 16:18:39 Player: chai Result: Destroyed by D-53 Grenadier with Mini Grenade Launcher Performance ------------- Evolutions (0) 0 Regions Visited (4) 800 Robots Destroyed (4) 20 Value Destroyed (88) 88 Prototype IDs (23) 460 Alien Tech Used (0) 0 Bonus (107) 107 TOTAL SCORE: 1475 Bonus ------- Follower Combat Kills 107 Cogmind --------- Core Integrity 0/250 Matter 289/300 Energy 64/100 System Corruption 0% Temperature Cool (0) Movement Walking (190) Ox1 Location -9/Mines Parts ------- > --- POWER (1) -------- (None) > --- PROPULSION (2) --- Aluminum Leg > --- UTILITY (2) ------ Large Storage Unit Signal Interpreter > --- WEAPON (2) ------- (None) > --- INVENTORY (15) --- Ion Engine Ion Engine Makeshift Leg Scrap Suit Large Matter Pod (150) Sensor Array Modified TNC Makeshift System Restoration Module Peak State ------------ > --- POWER ------------ Makeshift Power Source > --- PROPULSION ------- Compact Wheel Compact Wheel > --- UTILITY ---------- Large Storage Unit Signal Interpreter > --- WEAPON ----------- Light Assault Rifle Makeshift Shrapnel Gun > --- INVENTORY -------- Ion Engine Makeshift Leg Compact Wheel Scrap Suit Large Matter Pod Sensor Array Modified TNC Makeshift System Restoration Module Light Assault Rifle Mining Laser [Rating: 15] Favorites ----------- Power Light Ion Engine Engine Light Ion Engine Propulsion Compact Wheel Treads Light Treads Leg Aluminum Leg Wheel Compact Wheel Utility Small Storage Unit Storage Small Storage Unit Processor Targeting Computer Weapon Light Assault Rifle Ballistic Gun Light Assault Rifle Special Weapon Mining Laser Build | -11 -10 -10 -10 -9 ------- Run | Yrd Mat Min Exi Min Slots Evolved . | . . . . . Power . | . . . . . Propulsion . | . . . . . Utility . | . . . . . Weapon . | . . . . . Parts Attached 19 | 6 3 5 2 3 Power 3 | 1 . 1 1 . Engine 3 | 1 . 1 1 . Core . | . . . . . Reactor . | . . . . . Propulsion 7 | 2 2 1 . 2 Treads 1 | 1 . . . . Leg 1 | . . . . 1 Wheel 5 | 1 2 1 . 1 Hover . | . . . . . Flight . | . . . . . Utility 4 | 1 1 1 1 . Device . | . . . . . Storage 2 | 1 . . 1 . Processor 2 | . 1 1 . . Hackware . | . . . . . Protection . | . . . . . Artifact . | . . . . . Weapon 5 | 2 . 2 . 1 Energy Gun . | . . . . . Energy Cannon . | . . . . . Ballistic Gun 4 | 2 . 1 . 1 Ballistic Cannon . | . . . . . Launcher . | . . . . . Special Weapon 1 | . . 1 . . Impact Weapon . | . . . . . Slashing Weapon . | . . . . . Piercing Weapon . | . . . . . Special Melee Weapon . | . . . . . Unidentified Prototypes . | . . . . . Parts Lost 9 | . . 1 . 8 Power 1 | . . . . 1 Propulsion 4 | . . 1 . 3 Utility . | . . . . . Weapon 4 | . . . . 4 Highest Loss Streak 8 | . . 1 . 8 To Critical Strikes . | . . . . . Average Backups 7 | 1 6 7 7 9 Power . | . . . . 1 Propulsion 2 | 1 4 2 1 1 Utility 3 | . . 2 4 5 Weapon 1 | . 1 1 1 1 Tool/Special . | . . . . . Unused Backups 12 | . 2 4 . 6 Power . | . . . . . Propulsion 6 | . 2 3 . 1 Utility 5 | . . . . 5 Weapon 1 | . . 1 . . Tool/Special . | . . . . . Average Slot Usage (%) 99 | . 97 99 100 92 Engine 13 | . 14 14 14 12 Wheel 27 | . 24 27 28 25 Storage 14 | . 14 14 14 14 Processor 13 | . 11 14 14 14 Ballistic Gun 26 | . 28 25 28 22 Special Weapon 1 | . . 2 . . Peak Build Rating 15 | 6 7 8 13 15 Average Rating 8 | 4 6 7 9 13 On Entrance 6 | . 6 7 8 13 Avg Prop Armor Cover (%) 17 | 17 14 . . . Naked Turns . | . . . . . Heaviest Build 27 | 10 10 12 27 27 Greatest Support 32 | 10 32 32 32 32 Greatest Overweight (x) . | . . . . . Average Overweight (x) . | . . . . . Largest Inventory Capacity 15 | 8 8 8 15 15 Average Capacity 9 | 6 8 8 10 15 Most Carried 12 | 4 8 8 11 12 Average Carried 7 | 1 6 7 8 10 Final Capacity 15 | 8 8 8 15 15 Final Carried 11 | 3 8 6 11 9 Class Distribution -------------------- 100% | Mutant Dominant Class ---------------- Mutant | -10/Materials Mutant | -10/Mines Mutant | -10/Exiles Mutant | -9/Mines Resources | -11 -10 -10 -10 -9 ----------- Run | Yrd Mat Min Exi Min Matter Collected 624 | 206 . 331 . 87 Remotely . | . . . . . Salvage Created 149 | . . 122 . 27 Parts 4 | . . 4 . . Haulers Intercepted . | . . . . . Recyclers Shooed . | . . . . . Parts Field Recycled . | . . . . . Retrieved Matter . | . . . . . Parts Self-Destructed . | . . . . . Prevented . | . . . . . Parts Restored . | . . . . . Kills | -11 -10 -10 -10 -9 ------- Run | Yrd Mat Min Exi Min Combat Hostiles Destroyed 8 | . . 5 . 3 Guns 8 | . . 5 . 3 Classes Destroyed 3 | . . 3 . . Swarmer 2 | . . 2 . . Grunt 2 | . . 2 . . Assembled 4 | . . 1 . 3 Best Kill Streak 2 | . . 2 . 1 Combat Bots Only 2 | . . 2 . 1 Max Kills in Single Turn 1 | . . 1 . 1 Gunslinging . | . . . . . Exploded . | . . . . . Melee . | . . . . . Uniques/NPCs Destroyed . | . . . . . Combat | -11 -10 -10 -10 -9 -------- Run | Yrd Mat Min Exi Min Hostile Shots Fired 44 | . . 24 . 20 Missed 9 | . . 9 . . Hits 35 | . . 15 . 20 Melee 5 | . . . . 5 Projectile 30 | . . 15 . 15 AOE 10 | . . . . 10 Damage Taken 767 | . . 152 . 615 Core 257 | . . 35 . 222 Absorbed by Shields . | . . . . . Core Remaining (%) 100 | 100 . . . . Volleys Fired 33 | . . 24 . 9 Largest 2 | . . 2 . 2 Hottest 120 | . . 120 . 44 Shots Fired 57 | . . 41 . 16 Gun 48 | . . 32 . 16 Cannon . | . . . . . Launcher . | . . . . . Special 9 | . . 9 . . Kinetic 48 | . . 32 . 16 Thermal 9 | . . 9 . . Explosive . | . . . . . Electromagnetic . | . . . . . Robot Hit Streak 6 | . . 4 . 6 Robot Miss Streak 3 | . . 3 . 2 Penetration Max . | . . . . . Secondary Targets 1 | . . 1 . . Max Gunslinging Chain 1 | . . 1 . . Shots Hit Robots 27 | . . 15 . 12 Core Hits 18 | . . 10 . 8 Critical Kills . | . . . . . Critical Parts Destroyed . | . . . . . Critical Strikes . | . . . . . Melee Attacks . | . . . . . Impact . | . . . . . Slashing . | . . . . . Piercing . | . . . . . Sneak Attacks . | . . . . . Combat Hostiles . | . . . . . Follow-up Attacks . | . . . . . Damage Inflicted 265 | . . 123 . 142 Guns 263 | . . 123 . 140 Cannons . | . . . . . Explosions . | . . . . . Melee . | . . . . . Ramming 2 | . . . . 2 Kinetic 263 | . . 123 . 140 Thermal . | . . . . . Explosive . | . . . . . Electromagnetic . | . . . . . Impact . | . . . . . Slashing . | . . . . . Piercing . | . . . . . Highest Corruption . | . . . . . Average Corruption . | . . . . . Corruption Purged . | . . . . . Corruption Blocked . | . . . . . Overload Shots . | . . . . . Overflow Damage . | . . . . . Projectiles . | . . . . . Explosions . | . . . . . Melee . | . . . . . Knockbacks . | . . . . . Impact . | . . . . . Kinetic . | . . . . . Secondary . | . . . . . Self-Inflicted Damage . | . . . . . Shots . | . . . . . Rammed . | . . . . . Targets Rammed 1 | . . . . 1 Kicked 1 | . . . . 1 Crushed . | . . . . . Highest Temperature 60 | . . 60 . 14 Average Temperature 21 | . . 24 . 10 Received Heat Transfer 39 | . . 39 . . Siege Activations . | . . . . . Martial Activations . | . . . . . Shielding Activations . | . . . . . Robots Disrupted . | . . . . . Combat Hostiles . | . . . . . Robots Corrupted . | . . . . . Combat Hostiles . | . . . . . Parts Fried . | . . . . . Impact Corruptions . | . . . . . Robots Melted . | . . . . . Combat Hostiles . | . . . . . Parts Melted . | . . . . . Heat Transferred . | . . . . . Parts Sabotaged . | . . . . . Parts Stolen . | . . . . . Parts Stripped . | . . . . . Power Chain Reactions . | . . . . . Alert | -11 -10 -10 -10 -9 ------- Run | Yrd Mat Min Exi Min Maximum Alert Level . | . . . . . Low Security (%) 100 | 100 100 100 . 100 Level 1 . | . . . . . Level 2 . | . . . . . Level 3 . | . . . . . Level 4 . | . . . . . Level 5 . | . . . . . High Security . | . . . . . Max Security . | . . . . . Peak Influence 88 | . . 88 . . Initial . | . . . . . Average 12 | . . 16 . . Influence Increases 201 | . . 201 . . Destroy 0b10 Robot/C 180 | . . 180 . . Destroy Leader 10 | . . 10 . . Allied During Kill 8 | . . 8 . . Destroy Structure 3 | . . 3 . . Influence Decreases 201 | . . 201 . . Time Decay 171 | . . 171 . . Lost Part 10 | . . 10 . . Lost Ally 20 | . . 20 . . Squads Dispatched 1 | . 1 . . . Investigation 1 | . 1 . . . Extermination . | . . . . . Reinforcement . | . . . . . Assault . | . . . . . Garrison . | . . . . . Intercept . | . . . . . Searches Triggered . | . . . . . Construction Impeded . | . . . . . Haulers Reinforced . | . . . . . Active Scanning Responses . | . . . . . Cargo Convoy Interrupts . | . . . . . Stealth | -11 -10 -10 -10 -9 --------- Run | Yrd Mat Min Exi Min Distress Signals . | . . . . . Communications Jammed . | . . . . . Distress Signals . | . . . . . Times Spotted 23 | . . 8 . 15 Peak Tracking Total 13 | . . 3 . 13 Tactical Retreats 1 | . . . . 1 Traps | -11 -10 -10 -10 -9 ------- Run | Yrd Mat Min Exi Min Traps Triggered 1 | . 1 . . . Indirectly . | . . . . . Trap Hack Attempts . | . . . . . Triggered . | . . . . . Disarmed . | . . . . . Reprogrammed . | . . . . . Reused . | . . . . . Traps Extracted . | . . . . . Installed . | . . . . . Triggered . | . . . . . Machines | -11 -10 -10 -10 -9 ---------- Run | Yrd Mat Min Exi Min Machines Disabled . | . . . . . Max in Single Turn . | . . . . . Machines Repaired . | . . . . . Machines Dismantled . | . . . . . Machines Sabotaged . | . . . . . Overloaded Fab Kills . | . . . . . Hacking | -11 -10 -10 -10 -9 --------- Run | Yrd Mat Min Exi Min Machines Accessed 6 | . 1 . 5 . Terminals 1 | . 1 . . . Fabricators . | . . . . . Repair Stations . | . . . . . Recycling Units . | . . . . . Scanalyzers . | . . . . . Garrison Access . | . . . . . Total Hacks 33 | . 2 . 31 . Successful 31 | . . . 31 . Failed 2 | . 2 . . . Catastrophic . | . . . . . Database Lockouts . | . . . . . Manual 1 | . . . 1 . Terminals 2 | . 2 . . . Fabricators . | . . . . . Repair Stations . | . . . . . Recycling Units . | . . . . . Scanalyzers . | . . . . . Garrison Access . | . . . . . Terminal Hacks 31 | . . . 31 . Record 30 | . . . 30 . Proto ID Catalog 1 | . . . 1 . Fabricator Hacks . | . . . . . Repair Station Hacks . | . . . . . Recycling Unit Hacks . | . . . . . Scanalyzer . | . . . . . Garrison Access Hacks . | . . . . . Unauthorized Hacks . | . . . . . Terminals . | . . . . . Fabricators . | . . . . . Repair Stations . | . . . . . Recycling Units . | . . . . . Scanalyzers . | . . . . . Garrison Access . | . . . . . Data Cores Recovered . | . . . . . Used . | . . . . . Hacking Detections 1 | . 1 . . . Full Trace Events . | . . . . . Feedback Events . | . . . . . Feedback Blocked . | . . . . . Robot Schematics Acquired . | . . . . . Robots Built . | . . . . . Authchips . | . . . . . Time . | . . . . . Total Robot Build Rating . | . . . . . Part Schematics Acquired . | . . . . . Parts Built . | . . . . . Authchips . | . . . . . Time . | . . . . . Total Part Build Rating . | . . . . . Part Studies Acquired . | . . . . . Parts Repaired . | . . . . . Time . | . . . . . Parts Recycled . | . . . . . Recycled Matter . | . . . . . Retrieved Matter . | . . . . . Retrieved Components . | . . . . . Parts Scanalyzed . | . . . . . Part Schematics Acquired . | . . . . . Parts Damaged . | . . . . . Bothacking | -11 -10 -10 -10 -9 ------------ Run | Yrd Mat Min Exi Min Used RIF Installer . | . . . . . Robots Hacked . | . . . . . Non-combat . | . . . . . Combat . | . . . . . Robot Hacks Applied . | . . . . . Relay Couplers Released . | . . . . . Fabnet Peak Effective % . | . . . . . Robots Rewired 3 | . . . 3 . Allies Hacked . | . . . . . Hacks Repelled . | . . . . . Allies | -11 -10 -10 -10 -9 -------- Run | Yrd Mat Min Exi Min Total Allies 5 | . . 1 3 1 Largest Group 4 | . . 1 3 4 Highest-Rated Group 68 | . . 31 37 68 Highest-Rated Ally 31 | . . 31 21 31 Total Orders . | . . . . . Ally Attacks 27 | . . 9 . 18 Total Damage 413 | . . 168 . 245 Kills 11 | . . 5 . 6 Allies Corrupted . | . . . . . Allies Melted . | . . . . . Intel | -11 -10 -10 -10 -9 ------- Run | Yrd Mat Min Exi Min Active Infowar (turns) . | . . . . . Robot Analysis Total . | . . . . . Derelict Logs Recovered 2 | . . 2 . . Drone Launches . | . . . . . Drone Recoveries . | . . . . . Exploration | -11 -10 -10 -10 -9 ------------- Run | Yrd Mat Min Exi Min Turns Passed 1729 | 47 118 831 617 116 Spaces Moved 1478 | 45 107 701 572 53 Core 3 | 3 . . . . Treads . | . . . . . Legs . | . . . . . Wheels 1475 | 42 107 701 572 53 Hover . | . . . . . Flight . | . . . . . Fastest Speed 50 | 50 80 100 100 100 Average Speed 99 | 78 98 100 100 100 Slowest Speed 100 | 80 100 100 100 100 Overloaded Moves . | . . . . . Propulsion Burnouts . | . . . . . Robots Hopped . | . . . . . Potential Cave-ins . | . . . . . Cave-ins Triggered . | . . . . . Exploration Rate (%) 46 | 3 19 97 94 17 Regions Visited 4 Branch Regions 3 Pre-discovered Areas 4 | . . 3 1 . Known Exits Taken 2 | . . 1 1 . Unknown Exits Taken 2 | 1 1 . . . Scrap Searched 1 | . . 1 . . Spaces Dug 1 | . . 1 . . Terrain Destroyed 3 | . . 3 . . Melee . | . . . . . Projectile 3 | . . 3 . . AOE . | . . . . . Terrain Rammed . | . . . . . Walls Destroyed . | . . . . . Machines Disabled . | . . . . . Actions | -11 -10 -10 -10 -9 --------- Run | Yrd Mat Min Exi Min Total 1670 | 54 120 778 617 101 Wait 68 | . . 37 . 31 Move 1474 | 44 106 700 571 53 Hop . | . . . . . Pick Up 21 | 4 7 3 5 2 Fast Attach 9 | 5 3 . 1 . Attach 6 | 1 . 1 . 4 Detach . | . . . . . Swap 9 | . . 7 1 1 Drop 12 | . 4 6 2 . Fire 33 | . . 24 . 9 Melee . | . . . . . Ram . | . . . . . Kick 1 | . . . . 1 Crush . | . . . . . Escape Stasis . | . . . . . Rewire 37 | . . . 37 . Trap . | . . . . . Miscellaneous . | . . . . . Route ------- -11/Scrapyard -10/Materials -10/Mines (discovered 3 exits: *Mat / *Exi / *Sub) -10/Exiles (discovered 2 exits: *Min x2) -9/Mines History --------- Turn | Location | Event 40 | -11/Scrapyard | Discovered new exit (range 12) 48 | -11/Scrapyard | Entered Materials 81 | -10/Materials | Discovered new exit (range 16) 166 | -10/Materials | Entered Mines 181 | -10/Mines | Escorted by a lone wolf Derelict 201 | -10/Mines | Learned location of Storage (-9) 221 | -10/Mines | Deemed a non-threat by the Exiles lab entrance 221 | -10/Mines | Discovered new exit (range 5) 235 | -10/Mines | Discovered new exit (range 13) 313 | -10/Mines | Build established: Mutant 330 | -10/Mines | Learned 4 Materials zone layouts 418 | -10/Mines | Learned location of Mines (-9) 483 | -10/Mines | Found a Scrap Suit stashed away for nefarious purposes 486 | -10/Mines | Found Scrap Suit 802 | -10/Mines | Discovered new exit (range 8) 812 | -10/Mines | Excavation squad dispatched 812 | -10/Mines | A large section of the Mines collapsed 926 | -10/Mines | Identified exit to Materials 978 | -10/Mines | Identified exit to Subcaves 995 | -10/Mines | Identified exit to Exiles 997 | -10/Mines | Entered Exiles 997 | -10/Exiles | Found Exiles lab destroyed 1020 | -10/Exiles | Discovered new exit (range 15) 1032 | -10/Exiles | Identified exit to Mines 1176 | -10/Exiles | Opened EX-Vault 1181 | -10/Exiles | Found Modified TNC 1284 | -10/Exiles | Learned location of Zion (-6) 1593 | -10/Exiles | Discovered exit to Mines (range 12) 1614 | -10/Exiles | Entered Mines 1614 | -9/Mines | Accompanied by 3 allies 1615 | -9/Mines | Met a Derelict testing a Signal Generator 1615 | -9/Mines | Assembled infested the area 1690 | -9/Mines | Lost 3 allies 1698 | -9/Mines | Core integrity fell below 50% 1729 | -9/Mines | Core integrity fell below 20% 1730 | -9/Mines | Destroyed by D-53 Grenadier with Mini Grenade Launcher Last Messages --------------- 01699_ Acquired 5 matter. 01706_ Acquired Aluminum Leg. 01708_ Acquired Ion Engine. 01716_ U-05 Engineer builds a Wall. 01720_ Commando 1a destroyed. 01720_ U-05 Engineer lays Concrete. 01722_ Mak. Power Source destroyed. 01723_ Mak. Shrapnel Gun destroyed. 01723_ U-05 Engineer builds a Wall. 01724_ The unstable cave ceiling collapses. 01724_ Com. Wheel destroyed. 01725_ The unstable cave ceiling collapses. 01726_ Mining Laser destroyed. 01727_ U-05 Engineer lays Concrete. 01728_ D-53 Grenadier destroyed. 01728_ Lgt. Assault Rifle destroyed. 01729_ Kicked D-53 Grenadier. 01730_ The unstable cave ceiling collapses. 01730_ U-05 Engineer builds a Wall. 01730_ Com. Wheel destroyed. Map ----- +----------------------------------------------------+ | ??????????????????????#### #???? | | ??????????????????????# ##???? | | ?????????????????????# #####????? | | ?????????????????????# & ## ##????????? | | ?????????????????????## ???## #?????????? | | ??????????????????????#??????# #?????????? | | ?????????????????????????????# #?????????? | | ?????????????????????????????# #?????????? | | ?????????????????????????????# #?????????? | | ?????????????????????????????# #?????????? | | ?????????????????????????????# #???##????? | | ?????????????????????????????# #### ##???? | | ?????????????????????????????# %% % #???? | | ???????????????????????????### ###% %##??? | | ???????????????????????????# #?#% #??? | | ?????????????????????####### #### "#??? | | ????????????????????## # #?# ##??? | | ????????????????##### % ## #???? | | ??????????????### ### #???? | | ??????????????# # ## #???? | | ??????????########### ## ##???? | | ????????? " u ##????? | | ???????? "%" # ##?????? | | ????????? "##### #??????? | | ??????????????# ##??????? | | ??????????????# # @ ##???????? | | ??????????????#### d ##????????? | | ?????????????????#### ###?????????? | | ????????????????????## #???????????? | | ?????????????????????## ###???????????? | | ??????????????????????## ?????????????? | | ??????????????????????? ?????????????? | | ??????????????????????? ????????????? | | ??????????????????????? ????????????? | | ?????????????????????? ????????????? | | ?????????????????????? % #???????????? | | ?????????????????????? ???????????? | | ?????????????????????? ???????????? | | ????????????????????? ???????????? | | ????????????????????? ! #???????????? | | ??????????????????????? #?????????????? | | ?????????????????????????????????????????? | | ?????????????????????????????????????????? | | ?????????????????????????????????????????? | | ?????????????????????????????????????????? | | ?????????????????????????????????????????? | | ?????????????????????????????????????????? | | ?????????????????????????????????????????? | | ?????????????????????????????????????????? | | ?????????????????????????????????????????? | +----------------------------------------------------+ Best States ------------- Heat Dissipation 25 Energy Generation 15 Energy Capacity 250 Matter Stores 300 Matter Capacity 300 Sight Range 16 Terrain Scan Density 10 Evasion (%) 44 Targeting Accuracy 5 Item Schematics ----------------- None Robot Schematics ------------------ None Fabricated ------------ Nothing Repaired ---------- Nothing Studied --------- None Alien Tech Used ----------------- None Achievements -------------- Luggage Code Slippery One Challenges ------------ None Game ------ Seed CoilDroneRipper Manual? 0 Play Time 00:20:27 Cumulative 61.2 hours Start 2026.07.05 @ 15:57:44 End 2026.07.05 @ 16:18:39 Sessions 1 Manual Loads 0 Difficulty Rogue Special Mode None Game No. 38 Rogue 38 Adventurer 0 Explorer 0 Win Type - Total 0 Types 0/0/0/0/0/0/0/0/0/0 Lore% 43 Gallery% 33 Achievement% 29 Wizard Run 0 Options --------- Layout 2 ASCII 0 Keyboard 0 Movement Mouse Keybinds 0 Fullscreen 1 Font 24/Smallcaps Map View 50x44 Zoom Use 0% Tactical HUD 1 Map Filters NONE Filters NONE Steam 1 RUN: c8eb5bfb-5813-4536-a246-f74a9ffc75c7